[Event "34th GER-ch Seniors-65 2022"]
[Site "Magdeburg"]
[Date "2022.08.20"]
[Round "9.2"]
[White "Vatter, Hans-Joachim"]
[Black "Polster, Wolfgang"]
[Result "1-0"]
[ECO "A26"]
[WhiteElo "2186"]
[BlackElo "2237"]
[Annotator "TA"]
[PlyCount "127"]
[EventDate "2022.08.12"]
[EventType "swiss"]
[EventCountry "GER"]
[SourceTitle "playchess.com"]
[Source "ChessBase"]
[SourceQuality "1"]
[TimeControl "40/5400+30:1800+30"]

{[%evp 12,127,0,4,11,12,12,5,11,6,8,6,10,10,12,20,30,6,32,26,47,9,23,0,7,-11,-17,-35,-33,-35,-33,-51,20,27,12,30,26,-12,99,86,91,58,131,108,106,101,124,118,130,130,130,132,143,139,137,139,143,145,145,145,145,152,152,143,180,159,152,131,216,145,141,114,128,136,239,125,186,176,142,143,172,172,172,155,168,0,147,145,139,144,147,145,137,145,145,19,125,20,25,19,59,57,80,91,516,510,1562,1490,1414,1353,1794,1706,29979,29980,29979,29980,29982,29983]} 1. c4 {[%emt 0:00:05]} e5 {[%emt 0:02:44]} 2. Nc3 {[%emt 0:00:46]} Nc6 {[%emt 0:00:53]} 3. g3 {[%emt 0:00:54]} g6 {[%emt 0:00:51]} 4. Bg2 {[%emt 0:00:25]} Bg7 {[%emt 0:00:28]} 5. d3 {[%emt 0:00:11]} d6 {[%emt 0:01:00]} 6. Nf3 {[%emt 0:02:15]} Nge7 {[%emt 0:02:10]} 7. Rb1 {[%emt 0:02:33]} Nd4 {[%emt 0:03:47] [#] A26: English Opening vs King's Indian with ...Nc6 and d3.} 8. Nxd4 $146 {[%emt 0:20:19]} ({Predecessor:} 8. Nd2 O-O 9. e3 Ne6 10. Nd5 c6 11. Nxe7+ Qxe7 12. O-O Ng5 13. b4 Bh3 14. Bxh3 Nxh3+ 15. Kg2 {0-1 (54) Gosztolya,F (2177)-Takacs,L (2282) Hungary 2002}) 8... exd4 {[%emt 0:00:26]} 9. Nd5 {[%emt 0:00:36]} c6 {[%emt 0:05:33] The position is equal.} 10. Nxe7 {[%emt 0:03:17]} Qxe7 {[%emt 0:00:03]} 11. O-O {[%emt 0:00:16]} O-O {[%emt 0:00:43]} 12. b4 {[%emt 0:00:12]} Bg4 {[%emt 0:03:02]} 13. Re1 {[%emt 0:07:03]} Qd7 {[%emt 0:04:52]} 14. Bf4 {[%emt 0:02:35]} h6 {[%emt 0:03:35]} 15. c5 {[%emt 0:05:05]} d5 {[%emt 0:04:48]} 16. a4 {[%emt 0:02:35]} (16. b5 $5) 16... a6 {[%emt 0:02:02]} 17. Qb3 {[%emt 0:03:48]} Rfe8 {[%emt 0:00:24]} 18. Rb2 {[%emt 0:01:07]} Bf8 {[%emt 0:05:36]} 19. Rc2 {[%emt 0:02:55]} g5 {[%emt 0:01:33]} 20. Bc1 {[%emt 0:00:12]} Bg7 {[%emt 0:00:59]} 21. Qa2 {[%emt 0:07:58]} Bh3 {[%emt 0:03:05]} (21... Re7 $15) 22. Bb2 $11 {[%emt 0:01:02]} Bxg2 {[%emt 0:03:49]} 23. Kxg2 {[%emt 0:00:19]} a5 {[%emt 0:00:13]} 24. Qb3 {[%emt 0:04:08]} axb4 {[%emt 0:00:30]} (24... h5 $11 {remains equal.}) 25. Qxb4 $16 {[%emt 0:00:30]} Re7 {[%emt 0:01:44]} 26. h3 {[%emt 0:03:39]} g4 {[%emt 0:00:41]} (26... f5 $14) 27. hxg4 {[%emt 0:01:02]} ({Of course not} 27. Bxd4 $6 gxh3+ 28. Kh2 Qg4 $11) 27... Qxg4 {[%emt 0:00:09]} 28. f3 {[%emt 0:00:05]} Qg6 {[%emt 0:00:30]} 29. Bxd4 {[%emt 0:00:30]} f5 {[%emt 0:00:30]} 30. Rh1 {[%emt 0:00:30]} Rae8 {[%emt 0:00:30] ...Bxd4 is the strong threat.} 31. Kf2 $1 {[%emt 0:00:30]} Qg5 {[%emt 0:00:30]} 32. Bxg7 {[%emt 0:00:30]} Qe3+ {[%emt 0:00:30]} 33. Kf1 $1 {[%emt 0:00:30]} Rxg7 {[%emt 0:00:30]} 34. Qf4 {[%emt 0:00:30]} Qxf4 {[%emt 0:00:30]} 35. gxf4 {[%emt 0:00:30][%mdl 4096] Endgame KRR-KRR} Kh7 {[%emt 0:00:30]} 36. Kf2 {[%emt 0:00:30]} Ra8 {[%emt 0:00:30]} 37. Ra1 {[%emt 0:00:30]} Kg6 {[%emt 0:00:30]} 38. a5 {[%emt 0:00:30]} Kf6 {[%emt 0:00:30]} 39. Rb2 {[%emt 0:00:30]} Rag8 {[%emt 0:00:30]} (39... d4 $16 {was worth a try.} 40. Ra4 Re7 41. Rxd4 Rxa5 42. Rd6+ Kg7) 40. d4 {[%emt 0:00:30]} Rg2+ {[%emt 0:00:30]} 41. Ke3 {[%emt 0:30:30] Strongly threatening Kd3.} h5 {[%emt 0:30:30]} 42. Kd3 {[%emt 0:00:30]} (42. Rxb7 $2 Re8+ 43. Kd2 Rgxe2+ 44. Kd1 Re1+ 45. Kc2 Rxa1 $19) 42... R2g7 {[%emt 0:00:30]} (42... Re8 $16 43. Rh1 (43. Rxb7 $2 Rgxe2 44. Re7 R8xe7 $19) 43... Kg6) 43. Rb6 {[%emt 0:00:30]} ({White must play} 43. Rab1 $1 $18) 43... Rc7 {[%emt 0:00:30] [#]} (43... Rc8 $16 44. a6 bxa6 45. Raxa6 Rgc7) 44. Rh1 $1 $18 {[%emt 0:00:30]} Rh8 {[%emt 0:00:30]} 45. Rh4 {[%emt 0:00:30] White is more active.} Kg6 {[%emt 0:00:30]} 46. Rb1 {[%emt 0:00:30]} Kf6 {[%emt 0:00:30]} 47. Rg1 {[%emt 0:00:30]} Rg7 {[%emt 0:00:30]} 48. Rb1 {[%emt 0:00:30]} (48. Rxg7 $18 Kxg7 49. Rh1) 48... Re7 {[%emt 0:00:30]} (48... Rc7 $1 $11) 49. Rbh1 $16 {[%emt 0:00:30]} Reh7 {[%emt 0:00:30]} 50. e4 {[%emt 0:00:30]} fxe4+ {[%emt 0:00:30]} 51. fxe4 {[%emt 0:00:30]} dxe4+ {[%emt 0:00:30]} 52. Kxe4 {[%emt 0:00:30]} Re8+ {[%emt 0:00:30]} 53. Kf3 {[%emt 0:00:30]} ({Only move:} 53. Kd3 $16) 53... Reh8 {[%emt 0:00:30] [#]} (53... Rd8 $11 {keeps the balance.}) 54. Re1 {[%emt 0:00:30]} (54. Ke3 $1 $16) 54... Rd8 {[%emt 0:00:30]} 55. Re4 {[%emt 0:00:30]} Rd5 {[%emt 0:00:30]} 56. Ke3 {[%emt 0:00:30]} Rg7 {[%emt 0:00:30]} 57. Re5 {[%emt 0:00:30]} Rg3+ $2 {[%emt 0:00:30][%mdl 8192] This costs Black the game.} (57... Rh7 $16 {is more resistant.}) 58. Ke4 $18 {[%emt 0:00:30]} Rxe5+ {[%emt 0:00:30]} (58... Rd8 $142 59. Rhxh5 Kg6) 59. dxe5+ {[%emt 0:00:30][%cal Bd4e5,Be5e6][%mdl 32] KR-KR} Kg6 {[%emt 0:00:30]} 60. Rh1 {[%emt 0:00:30]} h4 {[%emt 0:00:30]} 61. Rxh4 {[%emt 0:00:30] Threatens to win with e6.} Ra3 {[%emt 0:00:30]} 62. Rg4+ {[%emt 0:00:30] White mates.} Kf7 {[%emt 0:00:30]} 63. Kf5 {[%emt 0:00:30]} Rxa5 {[%emt 0:00:30]} 64. e6+ {[%emt 0:00:30] Weighted Error Value: White=0.20 (precise) /Black=0.53} 1-0

[Event "34th GER-ch Seniors-65 2022"]
[Site "Magdeburg"]
[Date "2022.08.20"]
[Round "9.3"]
[White "Boidman, Yuri"]
[Black "Heinig, Wolfram"]
[Result "1-0"]
[ECO "E90"]
[WhiteElo "2286"]
[BlackElo "2244"]
[Annotator "TA"]
[PlyCount "91"]
[EventDate "2022.08.12"]
[EventType "swiss"]
[EventCountry "GER"]
[SourceTitle "playchess.com"]
[Source "ChessBase"]
[SourceQuality "1"]
[TimeControl "40/5400+30:1800+30"]

{[%evp 13,91,77,72,22,23,0,47,51,54,53,63,32,62,47,42,41,43,-45,-33,-34,-20,-30,-29,-42,-33,-69,24,-62,-25,-25,23,40,28,31,39,47,42,36,63,63,186,86,65,10,141,160,170,93,70,76,91,109,95,116,205,22,49,49,218,0,0,0,731,711,696,708,697,627,797,71,68,115,836,812,1659,1662,2266,2110,29967,29962]} 1. e4 {[%emt 0:00:06]} c6 {[%emt 0:00:02]} 2. c4 {[%emt 0:00:29]} e5 {[%emt 0:00:21]} 3. Nf3 {[%emt 0:00:12]} d6 {[%emt 0:01:18]} 4. d4 {[%emt 0:00:21]} Nd7 {[%emt 0:00:09]} 5. Nc3 {[%emt 0:00:15]} Ngf6 {[%emt 0:00:04]} 6. Be2 {[%emt 0:00:29]} g6 {[%emt 0:00:42]} 7. O-O {[%emt 0:00:42]} Bg7 {[%emt 0:00:03]} 8. Rb1 {[%emt 0:09:58] E90: King's Indian: Classical: Early deviations and 6 h3.} (8. Be3 $16) 8... O-O $11 {[%emt 0:02:36]} 9. b4 {[%emt 0:04:38]} Qe7 {[%emt 0:13:37]} (9... exd4 $11 10. Nxd4 Re8) 10. d5 $14 {[%emt 0:07:17] [#] White is slightly better.} cxd5 $146 {[%emt 0:08:46]} ({Predecessor:} 10... a5 11. dxc6 bxc6 12. a3 axb4 13. axb4 Bb7 14. Ne1 Ne8 15. Be3 f5 16. f3 Nef6 {1-0 (49) Heindrich,J (2135)-Farkas,D (2071) Hungary 2006}) 11. cxd5 {[%emt 0:01:13]} (11. Nxd5 Nxd5 12. Qxd5 (12. cxd5 f5 $11) 12... Nb6 $11) 11... Ne8 {[%emt 0:00:57]} 12. Qc2 {[%emt 0:06:08]} (12. Bg5 $5 {[%cal Rg5e7]} f6 13. Bh4 $11) 12... h6 {[%emt 0:10:01]} 13. Bd3 {[%emt 0:07:27]} Ndf6 {[%emt 0:04:56]} 14. Nd2 {[%emt 0:07:05]} Nh5 {[%emt 0:01:10]} 15. g3 {[%emt 0:11:35]} (15. Nc4 $14) 15... Bh3 $15 {[%emt 0:09:13]} 16. Re1 {[%emt 0:02:40]} Rc8 {[%emt 0:00:12][%cal Oh5f4]} 17. Be2 {[%emt 0:07:50]} f5 {[%emt 0:14:09]} 18. Qd3 {[%emt 0:04:07]} Nef6 {[%emt 0:02:28]} 19. f3 {[%emt 0:02:24] [#]} Qc7 {[%emt 0:04:12]} (19... Nf4 $1 $15 20. gxf4 Nh5) 20. Nc4 {[%emt 0:02:44]} (20. Nd1 $1 $11) 20... a6 {[%emt 0:02:43]} 21. b5 {[%emt 0:00:45]} fxe4 {[%emt 0:00:45]} (21... f4 {should be considered.} 22. gxf4 (22. Ba3 fxg3 23. Bxd6 Qd8 $11) 22... Nxf4 23. Bxf4 exf4) 22. Nxe4 $11 {[%emt 0:01:13]} Nxe4 {[%emt 0:03:05]} 23. fxe4 {[%emt 0:00:11]} Nf6 {[%emt 0:01:08][%cal Of6e4]} 24. bxa6 {[%emt 0:01:37]} bxa6 {[%emt 0:00:05][%cal Of6e4]} 25. Rb6 {[%emt 0:03:04] Active counter play!} Ng4 {[%emt 0:01:43]} 26. Be3 {[%emt 0:02:09] Inhibits Qc5. Rc6 is the strong threat.} Bf6 {[%emt 0:08:04]} (26... Rf6 $14) 27. Rxd6 {[%emt 0:01:42]} (27. Nxd6 Nxe3 28. Nxc8 (28. Qxe3 $2 Bg5 $19) 28... Bg5 29. Rxg6+ Kh8 $17) (27. Bxg4 $18 Bxg4 28. Rc6 (28. Nxd6 Qc2 $16) (28. Bxh6 Qc5+ 29. Qe3 Qxc4 $17)) 27... Nxe3 $16 {[%emt 0:00:34]} 28. Qxe3 {[%emt 0:00:12]} ({Better is} 28. Rc6 $1 $14 Nc2 29. Rxc7 Nxe1 30. Rxc8 $1 Nxd3 31. Rxf8+ Kxf8 32. Bxd3) 28... Bg5 {[%emt 0:01:29] A strong pair of Bishops.} (28... Qf7 $1 $11 {keeps the balance.} 29. Qxh6 Bg7) 29. Rxg6+ {[%emt 0:02:10]} Kh7 {[%emt 0:00:05]} 30. Rxg5 {[%emt 0:00:33]} (30. Qb6 $18) 30... hxg5 {[%emt 0:00:06]} 31. Qxg5 {[%emt 0:00:33] The board is on fire.} Qc5+ {[%emt 0:00:29]} 32. Ne3 {[%emt 0:01:14] And now g4 would win.} Rf4 {[%emt 0:01:15]} 33. Qh5+ {[%emt 0:03:19]} (33. gxf4 $2 Qxe3+ 34. Kh1 Qxe4+ 35. Kg1 Rg8 36. Qxg8+ Kxg8 $19) 33... Kg7 {[%emt 0:00:24]} (33... Kg8 $16 {was necessary.} 34. Qg6+ (34. gxf4 Qxe3+ 35. Kh1 Qxe4+ 36. Qf3 Qxf3+ 37. Bxf3 exf4 $14) 34... Kf8 35. gxf4 Qxe3+ 36. Kh1 Rc1 37. Qf6+ Kg8 38. Qg6+ Kh8 39. Qh6+ Kg8 40. Qg6+ Kh8 41. Qh6+ Kg8 42. Qg6+) 34. Qxe5+ $2 {[%emt 0:01:08]} (34. gxf4 Qxe3+ 35. Kh1 Qxe4+ 36. Qf3 Qxf3+ 37. Bxf3 exf4 $11) ({White should try} 34. Bf3 $18 Qc3 35. Kf2 (35. Qg5+ Kh7 $11) 35... Rxf3+ 36. Qxf3 (36. Kxf3 Rf8+ 37. Ke2 Qb2+ 38. Kd3 Qd4+ 39. Ke2 Qb2+ 40. Kd3 Qd4+ 41. Ke2 Qb2+ $11)) 34... Rf6 $11 {[%emt 0:00:29]} 35. Bf3 $1 {[%emt 0:02:45] Strongly threatening g4.} Qb4 $2 {[%emt 0:03:26]} (35... Qb6 $1 $14) 36. Re2 $2 {[%emt 0:00:57]} (36. Kf2 $18 {Black must now prevent g4.} Rc1 37. Qg5+ (37. Nf5+ Bxf5 38. exf5 Qxe1+ 39. Qxe1 Rxe1 $16) 37... Kh7 38. Qh5+ (38. Rxc1 Qd2+ 39. Kg1 Qxc1+ 40. Kf2 Qd2+ 41. Kg1 Qe1+) 38... Kg8 39. Re2 (39. Qg5+ Kh7 $18) 39... Qxe4 40. Qg5+ Qg6 41. Qxg6+ Rxg6 42. g4) 36... Rc1+ {[%emt 0:01:59]} 37. Kf2 {[%emt 0:00:10][%cal Bg1f2,Bf2g3,Bg3f4][%mdl 32]} Qb1 $2 {[%emt 0:00:21][%mdl 8192]} (37... Qc5 $11 38. Qg5+ Rg6 39. Qe5+ Rf6 40. Qg5+ Rg6 41. Qe5+ Rf6) 38. Qg5+ $1 $18 {[%emt 0:01:19]} Rg6 {[%emt 0:00:37]} 39. Qe7+ {[%emt 0:01:01]} Kg8 {[%emt 0:00:38]} 40. g4 {[%emt 0:01:38]} Rf1+ {[%emt 0:05:35] [#]} 41. Nxf1 $2 {[%emt 0:33:58]} (41. Kg3 $1 $18 {is the precise move to win.}) 41... Qxf1+ $16 {[%emt 0:30:07]} 42. Kg3 $1 {[%emt 0:00:00]} (42. Ke3 $6 Qc1+ 43. Kf2 (43. Rd2 Qc3+ 44. Ke2 Rf6 $11) 43... Qf1+ 44. Kg3 (44. Ke3 Qc1+ 45. Kf2 Qf1+ $18) 44... Bxg4 45. Qe8+ (45. Bxg4 Qg1+ 46. Kf4 Qxg4+ 47. Ke3 Qg1+ 48. Rf2 Qe1+ 49. Kf3 Qc3+ 50. Ke2 Qb2+ 51. Kf1 Qc1+ 52. Ke2 Qb2+ 53. Kf1 Qc1+ 54. Ke2 Qb2+ $11) 45... Kh7 46. Qxg6+ (46. Bxg4 Qg1+ 47. Rg2 Qe3+ 48. Kh4 Qh6+ 49. Bh5 Rxg2 $11) 46... Kxg6 47. Kxg4 (47. Bxg4 Qg1+ 48. Kh4 Qc5 $16) 47... Qg1+ 48. Rg2 Qc1 $16) 42... Qg1+ $2 {[%emt 0:00:00][%mdl 8192]} (42... Bxg4 $16 43. Qe8+ (43. Bxg4 Qg1+ 44. Kf3 Qxg4+ 45. Ke3 Qg1+ 46. Rf2 Qe1+ 47. Re2 Qg1+ 48. Rf2 Qe1+ 49. Re2 Qg1+ $11) 43... Kh7 44. Qf7+ (44. Bxg4 Qg1+ 45. Rg2 Qe3+ 46. Kh4 Qh6+ 47. Kg3 Qe3+ 48. Kh4 Qh6+ 49. Bh5 Rxg2 $11) 44... Kh8) 43. Kf4 $18 {[%emt 0:00:00] Threatens to win with Rc2.} ({But not} 43. Kxh3 $2 Rh6+ 44. Qh4 Qf1+ 45. Kg3 Rxh4 46. Kxh4 Qxf3 $19) 43... Bxg4 {[%emt 0:00:00]} 44. Qd8+ {[%emt 0:00:00]} (44. Rg2 Qc1+ 45. Kg3 Bxf3+ 46. Kxf3 Qc3+ 47. Kf2 Qd2+ 48. Kf3 Qxg2+ 49. Ke3 Qg1+ 50. Kd3 Qf1+ 51. Kd4 Qf2+ 52. Kc3 Rh6 53. Qd8+ Qf8 54. Qg5+ Qg7+ 55. Qxg7+ Kxg7 $19) 44... Kg7 {[%emt 0:00:00] [#]} 45. Qc7+ $1 {[%emt 0:00:00]} Kg8 {[%emt 0:00:00]} 46. Rg2 {[%emt 0:00:00] Weighted Error Value: White=0.49/Black=0.37} 1-0

[Event "34th GER-ch Seniors-65 2022"]
[Site "Magdeburg"]
[Date "2022.08.20"]
[Round "9.6"]
[White "Syre, Christian"]
[Black "Westermann, Johannes"]
[Result "1/2-1/2"]
[ECO "D55"]
[WhiteElo "2243"]
[BlackElo "2056"]
[Annotator "TA"]
[PlyCount "50"]
[EventDate "2022.08.12"]
[EventType "swiss"]
[EventCountry "GER"]
[SourceTitle "playchess.com"]
[Source "ChessBase"]
[SourceQuality "1"]
[TimeControl "40/5400+30:1800+30"]

{[%evp 16,50,5,6,6,15,27,30,39,-41,28,23,20,8,22,14,36,0,0,-20,-12,-10,-9,-2,0,0,0,0,16,0,0,0,2,0,0,-4,-4]} 1. c4 {[%emt 0:00:04]} e6 {[%emt 0:00:07]} 2. Nc3 {[%emt 0:00:22]} d5 {[%emt 0:00:14]} 3. d4 {[%emt 0:01:03]} Nf6 {[%emt 0:00:08]} 4. Bg5 {[%emt 0:00:38]} Be7 {[%emt 0:00:09]} 5. e3 {[%emt 0:00:14]} h6 {[%emt 0:00:09]} 6. Bxf6 {[%emt 0:00:17]} Bxf6 {[%emt 0:00:09]} 7. Nf3 {[%emt 0:00:05]} O-O {[%emt 0:00:56]} 8. Rc1 {[%emt 0:00:23]} a6 {[%emt 0:01:09]} 9. Bd3 {[%emt 0:07:51]} dxc4 {[%emt 0:00:25] D55: Queen's Gambit Declined: 4 Bg5 Be7: Lines without ...h6 and 6...h6 7 Bxf6.} 10. Bxc4 {[%emt 0:00:02]} b5 {[%emt 0:00:14]} 11. Bd3 {[%emt 0:00:04]} Bb7 {[%emt 0:00:17] [#] White has an edge.} 12. a4 $146 {[%emt 0:00:12]} (12. Ne4 $14) ({Predecessor:} 12. Be4 c6 13. Bb1 Nd7 14. Qc2 g6 15. h4 h5 16. Ne4 c5 17. Nxc5 Nxc5 18. dxc5 {0-1 (51) Nesterov,A (2484)-Nozdrachev,V (2494) Sochi 2019}) 12... bxa4 {[%emt 0:16:05]} (12... c5 $15) 13. Nxa4 {[%emt 0:02:10]} Nd7 {[%emt 0:00:22]} 14. O-O {[%emt 0:01:27]} Be7 {[%emt 0:02:40]} 15. Qe2 {[%emt 0:09:13]} Qb8 {[%emt 0:03:04]} 16. e4 {[%emt 0:11:40]} Rc8 {[%emt 0:01:37] The position is equal.} 17. Rc2 {[%emt 0:13:21]} c5 {[%emt 0:02:52]} 18. d5 {[%emt 0:08:37]} exd5 {[%emt 0:13:56]} 19. exd5 {[%emt 0:02:43]} Bd6 {[%emt 0:06:34]} 20. Bc4 {[%emt 0:10:10]} Re8 {[%emt 0:01:50]} 21. Qd3 {[%emt 0:01:04]} Qd8 {[%emt 0:00:48]} 22. Re2 {[%emt 0:02:49]} Rxe2 {[%emt 0:08:40]} 23. Qxe2 {[%emt 0:00:02]} Qe8 {[%emt 0:04:28]} 24. Re1 {[%emt 0:05:55]} Qxe2 {[%emt 0:01:14]} 25. Rxe2 {[%emt 0:00:01]} Nf6 {[%emt 0:01:19] Weighted Error Value: White=0.17 (very precise) /Black=0.12 (very precise)} 1/2-1/2

[Event "34th GER-ch Seniors-65 2022"]
[Site "Magdeburg"]
[Date "2022.08.20"]
[Round "9.8"]
[White "Schmidt, Gerhard"]
[Black "Namyslo, Holger"]
[Result "1/2-1/2"]
[ECO "B79"]
[WhiteElo "2100"]
[BlackElo "2168"]
[Annotator "TA"]
[PlyCount "39"]
[EventDate "2022.08.12"]
[EventType "swiss"]
[EventCountry "GER"]
[SourceTitle "playchess.com"]
[Source "ChessBase"]
[SourceQuality "1"]
[TimeControl "40/5400+30:1800+30"]

{[%evp 25,39,55,53,60,81,0,29,-168,-2,-7,-13,-8,-17,-6,-16,0]} 1. e4 {[%emt 0:00:12]} c5 {[%emt 0:01:48]} 2. Nf3 {[%emt 0:00:22]} d6 {[%emt 0:00:11]} 3. d4 {[%emt 0:00:30]} cxd4 {[%emt 0:00:05]} 4. Nxd4 {[%emt 0:00:16]} Nf6 {[%emt 0:00:09]} 5. Nc3 {[%emt 0:00:20]} g6 {[%emt 0:00:40]} 6. Be3 {[%emt 0:00:28]} Bg7 {[%emt 0:00:09]} 7. f3 {[%emt 0:00:30]} O-O {[%emt 0:00:28]} 8. Qd2 {[%emt 0:00:17]} Nc6 {[%emt 0:00:25][%cal Bb8c6,Bc6e5,Be5g4][%mdl 32]} 9. Bc4 {[%emt 0:00:18]} Bd7 {[%emt 0:00:13]} 10. O-O-O {[%emt 0:00:25]} Ne5 {[%emt 0:04:30]} 11. Bb3 {[%emt 0:00:22]} Qa5 {[%emt 0:01:03]} 12. Kb1 {[%emt 0:03:49]} Rfc8 {[%emt 0:01:18]} 13. h4 {[%emt 0:06:52]} h5 {[%emt 0:02:58]} 14. Bg5 {[%emt 0:06:38] B79: Sicilian Dragon: Yugoslav Attack, 9 Bc4 Bd7 10 0-0-0 Qa5.} Rc5 {[%emt 0:09:49] [#]} 15. f4 $146 {[%emt 0:21:58]} (15. Bxf6 $16 Bxf6 16. Nd5) ({Predecessor:} 15. Bxf6 exf6 16. f4 Ng4 17. f5 Bh6 18. Qe2 gxf5 19. Nxf5 Bxf5 20. exf5 Rxc3 21. bxc3 Qxc3 {½-½ (59) Galkin,A (2587)-Malakhov,V (2605) Saint Vincent 2000}) 15... Neg4 {[%emt 0:14:10]} 16. f5 $2 {[%emt 0:16:46] [#]} (16. Rhe1 $11) 16... gxf5 $2 {[%emt 0:02:10]} (16... Rxc3 $1 $19 {[%mdl 512]} 17. Qxc3 (17. fxg6 Nxe4) 17... Qxc3 18. bxc3 Nxe4 19. fxg6 Nxc3+ 20. Kb2 Nxd1+ 21. Rxd1 Nf2 22. gxf7+ Kh7) 17. Nxf5 $11 {[%emt 0:02:55] The position is equal.} Bxf5 {[%emt 0:00:25]} 18. exf5 {[%emt 0:00:15] [#]} Rxc3 $1 {[%emt 0:07:35]} 19. Bxf6 {[%emt 0:05:32] [#]} (19. bxc3 $2 {loses.} Ne4 20. Qd3 Ngf2 $19) 19... Bxf6 {[%emt 0:21:11]} 20. bxc3 {[%emt 0:00:47] Weighted Error Value: White=0.71/Black=0.57} 1/2-1/2

[Event "34th GER-ch Seniors-65 2022"]
[Site "Magdeburg"]
[Date "2022.08.20"]
[Round "9.9"]
[White "Cichy, Michael"]
[Black "Herbrechtsmeier, Christof"]
[Result "0-1"]
[ECO "D97"]
[WhiteElo "2031"]
[BlackElo "2139"]
[Annotator "TA"]
[PlyCount "56"]
[EventDate "2022.08.12"]
[EventType "swiss"]
[EventCountry "GER"]
[SourceTitle "playchess.com"]
[Source "ChessBase"]
[SourceQuality "1"]
[TimeControl "40/5400+30:1800+30"]

{[%evp 22,56,5,7,31,31,50,-13,0,-81,-77,-81,-94,-162,-129,-668,-659,-907,-905,-873,-773,-934,-834,-742,-652,-993,-746,-758,-750,-710,-750,-734,-720,-714,-727,-677,-662]} 1. d4 {[%emt 0:00:07]} Nf6 {[%emt 0:00:06]} 2. Nf3 {[%emt 0:00:10]} g6 {[%emt 0:00:06]} 3. c4 {[%emt 0:00:26]} Bg7 {[%emt 0:00:07]} 4. Nc3 {[%emt 0:00:23]} d5 {[%emt 0:00:07]} 5. Qb3 {[%emt 0:01:29]} dxc4 {[%emt 0:00:12]} 6. Qxc4 {[%emt 0:00:10]} O-O {[%emt 0:00:11]} 7. e4 {[%emt 0:00:28]} Na6 {[%emt 0:00:58]} 8. Be2 {[%emt 0:00:37]} c5 {[%emt 0:00:07]} 9. d5 {[%emt 0:01:00]} e6 {[%emt 0:00:19]} 10. O-O {[%emt 0:01:36]} exd5 {[%emt 0:03:38]} 11. exd5 {[%emt 0:00:45]} Re8 {[%emt 0:03:39][%cal Bf8e8,Be8e4,Be4e2][%mdl 32]} 12. Rd1 {[%emt 0:01:59]} Bd7 {[%emt 0:00:30][%cal Ob7b5] D97: Grünfeld: Russian System: 7 e4, replies other than 7...Bg4.} 13. Bf1 {[%emt 0:04:29] [#]} b5 $146 {[%emt 0:00:31]} ({Predecessor:} 13... Qb6 14. h3 Rad8 15. Be3 Qb4 16. Qxb4 cxb4 17. Nb5 Rxe3 18. fxe3 Bh6 19. Kh2 Bxe3 20. Nbd4 {1-0 (41) Santos Latasa,J (2581)-Ivanchuk,V (2713) Caleta 2019}) 14. Qh4 {[%emt 0:02:52]} ({White should try} 14. Nxb5 $14 Re4 15. Qc2) 14... b4 $11 {[%emt 0:05:42] The position is equal.} 15. Bxa6 {[%emt 0:03:43]} (15. Nb5 $1 $11 {remains equal.}) 15... bxc3 $17 {[%emt 0:00:10]} 16. bxc3 {[%emt 0:04:04]} Re4 {[%emt 0:06:01]} 17. Qg5 {[%emt 0:03:47]} (17. Bf4 $17 Bg4 18. Qg3 (18. Qg5 $2 h6 $19)) 17... Ba4 $36 {[%emt 0:09:31][%mdl 2048] Black is on the roll.} ({And not} 17... Qa5 18. Bb7 Rae8 19. Bc6 $17) 18. Rd3 {[%emt 0:07:08][%mdl 8192] [#]} (18. Rf1 $17) 18... Qb6 $19 {[%emt 0:02:12] Black is clearly winning.} 19. c4 {[%emt 0:09:01]} Qxa6 {[%emt 0:01:51]} 20. Bb2 {[%emt 0:01:26]} Re2 {[%emt 0:01:31]} 21. Nd2 {[%emt 0:05:30]} h6 {[%emt 0:04:23]} 22. Qh4 {[%emt 0:05:56]} g5 {[%emt 0:05:33]} 23. Qg3 {[%emt 0:02:44]} Rae8 {[%emt 0:05:24]} 24. Rf1 {[%emt 0:06:41] [#]} Rxd2 $1 {[%emt 0:03:50]} 25. Rxd2 {[%emt 0:00:52]} Ne4 {[%emt 0:00:08]} 26. Qd3 {[%emt 0:01:10]} Nxd2 {[%emt 0:00:19]} 27. Qxd2 {[%emt 0:01:59]} Bxb2 {[%emt 0:00:20]} 28. Qxb2 {[%emt 0:00:03]} Qxc4 {[%emt 0:47:04] White did not feel at home in the position after the opening.  Weighted Error Value: White=0.99/Black=0.38} 0-1